fUSD/lending_fUSD_20240801
["ID","MTS","AMOUNT","RATE_DAILY","PERIOD"]
[333847292,1722550240486,-7666.6504,0.000109,2]
[333847293,1722550240499,-170.59489617,0.000109,2]
[333847294,1722550240510,-159.00411161,0.000109,2]
[333847295,1722550240523,-428.44775864,0.000109,2]
[333847296,1722550240532,-2500.0,0.000109,3]
[333847298,1722550240543,-185.75783037,0.000109,2]
[333847300,1722550240554,-1286.00933498,0.000109,2]
[333847302,1722550240564,-1500.0,0.00010959,5]
[333847304,1722550240573,-269.22861806,0.00010986,2]
[333847306,1722550240584,-92408.00784629,0.00011,2]
[333847591,1722550243277,-197.57,0.00010242,2]
[333847594,1722550243286,-758.68,0.00011,3]
[333847597,1722550243298,-404.34576589,0.00011,3]
[333847619,1722550243441,-656.86101804,0.00011,3]
[333847621,1722550243454,-664.8555461,0.00011,3]
[333847623,1722550243465,-233889.82824496,0.00011,3]
[333847625,1722550243475,-293818.84049379,0.00011,2]
[333847627,1722550243496,-1134.31999994,0.00011,2]
[333847629,1722550243508,-912.45,0.00011,2]
[333847631,1722550243519,-567.63859501,0.00011,2]
[333847633,1722550243530,-32933.87196871,0.00011,2]
[333847634,1722550243542,-369.12270208,0.00011,2]
[333847635,1722550243557,-166590.0,0.00011,2]
[333847636,1722550243569,-6743.53679999,0.00011,2]
[333847637,1722550243582,-1114.98776206,0.00011,2]
[333848043,1722550248255,-344.849717,0.00011,2]
[333848044,1722550248267,-321.8,0.00011,2]
[333848045,1722550248279,-371.88291753,0.00011,2]
[333848046,1722550248291,-1324.8,0.00011,2]
[333848047,1722550248303,-544.4382752,0.00011,2]
[333848048,1722550248322,-611.967,0.00011,2]
[333848049,1722550248335,-445.87372116,0.00011,2]
[333848050,1722550248347,-468.60034096,0.00011,2]
[333848051,1722550248358,-387.7317709,0.00011,2]
[333848052,1722550248369,-225064.01328744,0.00011,2]
[333848053,1722550248380,-6998.15771474,0.00011,2]
[333848054,1722550248391,-623.04947874,0.00011,2]
[333848055,1722550248402,-1919.57705919,0.00011,2]
[333848056,1722550248413,-310.531547,0.00011,2]
[333848057,1722550248428,-453.46218221,0.00011,2]
[333848058,1722550248439,-740.40033588,0.00011,2]
[333848059,1722550248452,-418.84953567,0.00011,2]
[333848060,1722550248465,-298.66236919,0.00011,2]
[333848073,1722550755263,281.64,8.219e-05,2]
[333848076,1722551204118,796.69,8.907e-05,2]
[333848078,1722551231959,23900.0,8.906e-05,2]
[333848079,1722551239525,267.55,8.219e-05,2]
[333848083,1722551339656,694.3434613,9.005e-05,2]
[333848102,1722551432543,-500.0,9.105e-05,2]
[333848103,1722551432555,-672.4,9.132e-05,2]
[333848104,1722551432565,-200.0,9.139e-05,2]
[333848105,1722551432576,-1947.2,9.147e-05,2]
[333848106,1722551432587,-200.0,9.16e-05,2]
[333848107,1722551432597,-237.71,9.161e-05,2]
[333848108,1722551432608,-1487.02,9.18e-05,2]
[333848109,1722551432619,-2209.85,9.224e-05,2]
[333848110,1722551432630,-2342.84,9.237e-05,2]
[333848111,1722551432641,-300.0,9.33e-05,2]
[333848112,1722551432652,-300.0,9.33e-05,2]
[333848113,1722551432665,-1368.43,9.331e-05,2]
[333848114,1722551432674,-152.35,9.34e-05,2]
[333848115,1722551432684,-250.0,9.355e-05,2]
[333848116,1722551432694,-392.8,9.387e-05,2]
[333848117,1722551432703,-559.19,9.387e-05,2]
[333848118,1722551432713,-2774.99,9.388e-05,2]
[333848119,1722551432723,-3159.35,9.401e-05,2]
[333848120,1722551432732,-800.0,9.412e-05,2]
[333848121,1722551432741,-228.74,9.448e-05,2]
[333848122,1722551432751,-179.02,9.568e-05,2]
[333848123,1722551432761,-1221.3423,9.579e-05,2]
[333848124,1722551432771,-400.0,9.58e-05,2]
[333848125,1722551432780,-150.0,9.669e-05,2]
[333848126,1722551432790,-499.99,9.67e-05,2]
[333848127,1722551432799,-3986.10497548,9.67e-05,2]
[333848128,1722551432819,-6539.2,9.67e-05,2]
[333848137,1722551438295,-591.4607645,9.67e-05,2]
[333848142,1722551438339,-2857.67673907,9.67e-05,2]
[333848144,1722551438424,-3478.83752095,9.67e-05,2]
[333848145,1722551438435,-800.97,9.67e-05,2]
[333848146,1722551438445,-150.99,9.67e-05,2]
[333848147,1722551438455,-150.99,9.67e-05,2]
[333848148,1722551438466,-153.48,9.965e-05,2]
[333848149,1722551438475,-153.48,9.975e-05,2]
[333848150,1722551438484,-153.48,9.985e-05,2]
[333848151,1722551438495,-153.48,9.995e-05,2]
[333848152,1722551438504,-1977.0,0.0001,2]
[333848153,1722551438514,-153.48,0.00010005,2]
[333848154,1722551438523,-878.59,0.00010005,2]
[333848155,1722551438532,-153.48,0.00010015,2]
[333848156,1722551438542,-168.64,0.00010028,2]
[333848157,1722551438552,-244.70973248,0.000101,2]
[333848158,1722551438562,-420.0,0.00010263,2]
[333848159,1722551438572,-420.0,0.00010263,2]
[333848160,1722551438582,-200.0,0.00010282,2]
[333848161,1722551438591,-267.55,0.00010423,2]
[333848162,1722551438600,-400.0,0.000105,3]
[333848163,1722551438609,-53570.99771816,0.00010567,2]
[333848164,1722551438621,-55284.68526684,0.00010567,2]
[333848165,1722551438632,-362.95395797,0.00010567,2]
[333848166,1722551438643,-5810.36305703,0.00010567,2]
[333848167,1722551438652,-259.6107,0.00010573,2]
[333848168,1722551438664,-800.0,0.00010589,2]
[333848169,1722551438674,-800.0,0.000106,3]
[333848170,1722551438683,-255.0,0.00010635,2]
[333848171,1722551438693,-2500.0,0.000107,2]
[333848172,1722551438702,-2559.15,0.000107,2]
[333848173,1722551438712,-1200.0,0.000107,3]
[333848174,1722551438722,-400.0,0.00010778,2]
[333848175,1722551438731,-1263.57,0.00010794,2]
[333848176,1722551438741,-181.57328352,0.00010794,2]
[333848178,1722551438750,-1300.38657271,0.00010794,2]
[333848179,1722551438760,-370.20138099,0.00010796,2]
[333848181,1722551438769,-2261.0675,0.000108,2]
[333848182,1722551438778,-686.6938,0.000108,2]
[333848183,1722551438787,-1700.0,0.000108,3]
[333848185,1722551438797,-16551.3153239,0.0001088,2]
[333848186,1722551438808,-1901.20224488,0.0001088,2]
[333848187,1722551438828,-1109.20886868,0.0001088,2]
[333848188,1722551438839,-771.26757877,0.0001088,2]
[333848199,1722551440355,-303.27304,0.0001088,2]
[333848204,1722551440419,-2437.91943376,0.0001088,2]
[333848205,1722551440428,-2895.19953184,0.0001089,2]
[333848206,1722551440440,-104.80046816,0.0001089,2]
[333848207,1722551440450,-856.7353452,0.00010899,2]
[333848208,1722551440461,-589.20000001,0.00010899,2]
[333848209,1722551440585,-231.81037863,0.00010899,2]
[333848210,1722551440594,-182.60004436,0.00010899,2]
[333848211,1722551440604,-471.64146238,0.000109,2]
[333848212,1722551440647,-1641.30252,0.000109,2]
[333848213,1722551440660,-35902.69645705,0.000109,2]
[333848214,1722551440693,-3017.256,0.000109,2]
[333848215,1722551440704,-2880.424834,0.000109,2]
[333848216,1722551440716,-12590.58182657,0.000109,2]
[333848217,1722551440725,-162.30891772,0.000109,2]
[333848218,1722551440735,-761.8685,0.000109,2]
[333848219,1722551440744,-4450.96701782,0.000109,2]
[333848220,1722551440759,-362.572002,0.000109,2]
[333848221,1722551440770,-1516.52188018,0.000109,2]
[333848222,1722551440779,-3969.9594,0.000109,2]
[333848223,1722551440789,-500.0,0.000109,2]
[333848224,1722551440798,-23588.09654419,0.000109,2]
[333848491,1722551443504,-2500.0,0.00010694,2]
[333848493,1722551443515,-534.96957121,0.000109,2]
[333848499,1722551443562,-428.4361846,0.000109,2]
[333848501,1722551443572,-164.36173826,0.000109,2]
[333848503,1722551443582,-354.60851492,0.000109,2]
[333848505,1722551443591,-279.92356222,0.000109,3]
[333848508,1722551443605,-1820.07643778,0.000109,3]
[333848510,1722551443614,-174.83539434,0.000109,2]
[333848512,1722551443623,-354.60851488,0.00010909,2]
[333848514,1722551443633,-19684.01929505,0.00010915,2]
[333848516,1722551443643,-354.60851488,0.00010918,2]
[333848517,1722551443652,-354.60851488,0.00010927,2]
[333848519,1722551443661,-354.60851488,0.00010936,2]
[333848521,1722551443676,-1500.0,0.00010959,5]
[333848523,1722551443686,-155.36,0.0001099,2]
[333848525,1722551443700,-108723.55023163,0.00011,3]
[333848528,1722551443716,-14957.6585484,0.00011,3]
[333848530,1722551443727,-3267.60000022,0.00011,3]
[333848532,1722551443739,-16831.65284,0.00011,3]
[333848675,1722551447398,-60140.20921578,0.00011,3]
[333848677,1722551447407,-357475.29824529,0.00011,2]
[333848679,1722551447423,-640.54913721,0.00011,2]
[333848681,1722551447434,-896.1847932,0.00011,2]
[333848683,1722551447446,-1301.33763081,0.00011,2]
[333848685,1722551447459,-523.66292749,0.00011,2]
[333848688,1722551447471,-5114.97780404,0.00011,2]
[333848691,1722551447502,-6256.73050416,0.00011,2]
[333848693,1722551447514,-368336.6641754,0.00011,2]
[333848745,1722552631555,-151.03453606,9.888e-05,2]
[333848746,1722552631566,-276.69,9.913e-05,2]
[333848747,1722552631575,-200.0,0.00010646,2]
[333848748,1722552631585,-250.0,0.00010646,2]
[333848749,1722552631594,-150.0,0.00010877,2]
[333848751,1722552631604,-300.0,0.00010898,2]
[333848752,1722552631614,-300.0,0.00010898,2]
[333848753,1722552631624,-13520.5599,0.00010899,2]
[333848754,1722552631633,-150.0,0.00010899,2]
[333848755,1722552631648,-693.4472,0.000109,2]
[333848756,1722552631659,-1143.5919,0.000109,2]
[333848757,1722552631671,-189.72278742,0.000109,2]
[333848758,1722552631682,-1000.0,0.000109,2]
[333848759,1722552631694,-1509.97115151,0.000109,2]
[333848760,1722552631704,-1131.40574537,0.000109,2]
[333848761,1722552631714,-174.83539434,0.000109,2]
[333848762,1722552631731,-164.34003987,0.000109,2]
[333848763,1722552631741,-155.36,0.0001099,2]
[333848764,1722552631751,-1834.4,0.00010999,2]
[333848765,1722552631761,-153540.95647154,0.00011,3]
[333848766,1722552631771,-882608.27832222,0.00011,2]
[333848767,1722552631791,-777.495996,0.00011,2]
[333848768,1722552631803,-615.77052,0.00011,2]
[333848769,1722552631815,-496.77,0.00011,2]
[333848770,1722552631827,-1701.59232965,0.00011,2]
[333848771,1722552631838,-521.44331218,0.00011,2]
[333848772,1722552631850,-287.37338502,0.00011,2]
[333848773,1722552631862,-402039.91224965,0.00011,2]
[333848774,1722552631874,-991.38567962,0.00011,2]
[333848775,1722552631885,-1210.08986501,0.00011,2]
[333848776,1722552631908,-1579.80960355,0.00011,2]
[333848777,1722552631920,-8770.3115774,0.00011,2]
[333848778,1722552631933,-5089.15586786,0.00011,2]
[333848779,1722552631946,-451.63886766,0.00011,2]
[333848780,1722552631957,-2613.50210701,0.00011,2]
[333848781,1722552631969,-413.47322908,0.00011,2]
[333848782,1722552631981,-2470.24297497,0.00011,2]
[333848783,1722552631997,-4982.1901667,0.00011,2]
[333848784,1722552632008,-1528.35103245,0.00011,2]
[333848812,1722552637644,-173.15774171,0.00010545,2]
[333848813,1722552637657,-994.41204026,0.00011,2]
[333848826,1722552637830,-4852.6012,0.00011,2]
[333848827,1722552637842,-10535.96684458,0.00011,2]
[333848830,1722552637853,-19137.89899619,0.00011,2]
[333848832,1722552637865,-515.28705452,0.00011,2]
[333848833,1722552637877,-1134.70787623,0.00011,2]
[333848834,1722552637888,-991.17307876,0.00011,2]
[333848835,1722552637900,-1041.06219095,0.00011,2]
[333848836,1722552637911,-730.33611821,0.00011,2]
[333848837,1722552637925,-442.25,0.00011,2]
[333848838,1722552637936,-1248.82727493,0.00011,2]
[333848853,1722552638308,-5270.0,0.00011,2]
[333848855,1722552638320,-5139.54579721,0.00011,2]
[333848856,1722552638331,-6428.41205366,0.00011,2]
[333848857,1722552638342,-3861.57904239,0.00011,2]
[333848858,1722552638354,-35849.47465954,0.00011,2]
[333848859,1722552638392,-336.82560034,0.00011,2]
[333848860,1722552638404,-23996.93107085,0.00011,2]
[333848861,1722552638415,-3107.05121477,0.00011,2]
[333848862,1722552638428,-5213.2416444,0.00011,2]
[333848863,1722552638439,-10057.58,0.00011,2]
[333848864,1722552638450,-307.07755376,0.00011,2]
[333848865,1722552638462,-916.92440523,0.00011,2]
[333848866,1722552638473,-7570.38815316,0.00011,2]
[333848867,1722552638484,-762.40081932,0.00011,2]
[333848870,1722552639714,-1638.90014625,0.00010997,2]
[333848871,1722552639725,-22465.71023915,0.00011,2]
[333848872,1722552639737,-307.46014093,0.00011,2]
[333848873,1722552639750,-65864.16137191,0.00011,2]
[333848874,1722552639762,-487.73034388,0.00011,2]
[333848875,1722552639775,-3891.36684221,0.00011,2]
[333848876,1722552639786,-347.78074878,0.00011,2]
[333848877,1722552639797,-6025.04227376,0.00011,2]
[333848878,1722552641080,-292.26376334,0.00011,2]
[333848879,1722552641091,-964.78981012,0.00011,2]
[333848880,1722552641102,-840.5362786,0.00011,2]
[333848881,1722552641114,-680.67,0.00011,2]
[333848882,1722552641124,-322.85018007,0.00011,2]
[333848883,1722552641300,-1079.800005,0.00011,2]
[333848884,1722552641313,-843.15773648,0.00011,2]
[333848885,1722552641325,-524.6795584,0.00011,2]
[333848886,1722552641337,-540.18000005,0.00011,2]
[333848887,1722552641349,-338642.58192207,0.00011,2]
[333848888,1722552641362,-503.4787228,0.00011,2]
[333848889,1722552641374,-1413.08096614,0.00011,2]
[333848890,1722552641385,-30305.85968867,0.00011,2]
[333848891,1722552641403,-5117.89307753,0.00011,2]
[333848892,1722552641414,-3482.59104684,0.00011,2]
[333848893,1722552641426,-3148.07196326,0.00011,2]
[333848894,1722552641435,-410.41803763,0.00011,2]
[333848895,1722552641444,-6296.13739911,0.00011,2]
[333849006,1722552642542,-291.97097341,0.00011,2]
[333849010,1722552642554,-711.51228327,0.00011,2]
[333849026,1722552642624,-33539.00000004,0.00011,2]
[333849042,1722552642708,-335.24999999,0.00011,2]
[333849051,1722552642786,-18316.5951851,0.00011,2]
[333849053,1722552642796,-170.34699346,0.00011,2]
[333849055,1722552642806,-387.71092913,0.00011,2]
[333849057,1722552642818,-61.43191869,0.00011,2]
[333849059,1722552642827,-1023.70906631,0.00011,2]
[333849061,1722552642839,-26.01840238,0.00011,2]
[333849063,1722552642849,-340.68338463,0.00011,4]
[333849066,1722552642859,-299.71268725,0.00011,2]
[333849067,1722552642870,-155.0,0.00011,2]
[333849069,1722552642879,-402.59614286,0.00011,2]
[333849072,1722552642892,-10.1701574,0.00011,2]
[333849074,1722552642902,-620.01287259,0.00011,2]
[333849076,1722552642914,-297.59077079,0.00011,2]
[333849079,1722552642935,-22554.26819702,0.00011,2]
[333849081,1722552642947,-67268.84094529,0.00011,2]
[333849084,1722552642959,-276.224985,0.00011,2]
[333849352,1722552647901,-3325.0,0.00011,2]
[333849353,1722552647913,-656.23986,0.00011,2]
[333849354,1722552647929,-321.56691331,0.00011,2]
[333849355,1722552647940,-262.1977856,0.00011,2]
[333849356,1722552647951,-13859.30902558,0.00011,2]
[333849357,1722552647962,-828.18787916,0.00011,2]
[333849358,1722552647977,-1969.65144,0.00011,2]
[333849359,1722552647988,-1675.2,0.00011,2]
[333849360,1722552648007,-990.61853,0.00011,2]
[333849361,1722552648018,-1697.49671664,0.00011,2]
[333849362,1722552648029,-891.59999964,0.00011,2]
[333849371,1722553188625,3127.0,0.00027,120]
[333849373,1722553433156,279.23,8.394e-05,2]
[333849413,1722553832098,-640.33202254,9.913e-05,2]
[333849414,1722553832107,-415.66797746,0.00010174,2]
[333849415,1722553832119,-106.62635174,0.00010174,2]
[333849416,1722553832128,-530.53203882,0.00010174,2]
[333849417,1722553832138,-1167.63233051,0.00010174,2]
[333849418,1722553832147,-168.64,0.00010197,2]
[333849420,1722553832156,-160.0,0.00010289,2]
[333849422,1722553832166,-250.0,0.00010386,2]
[333849424,1722553832175,-456.12477276,0.00010546,2]
[333849426,1722553832187,-23443.87522724,0.00010546,2]
[333849427,1722553832197,-279.23,0.00010658,2]
[333849428,1722553832206,-400.0,0.000107,3]
[333849429,1722553832215,-800.0,0.000108,3]
[333849430,1722553832225,-1000.0,0.0001082,2]
[333849431,1722553832234,-499.99,0.0001082,2]
[333849432,1722553832244,-277.41,0.0001082,2]
[333849433,1722553832253,-5714.9806,0.000109,2]
[333849434,1722553832263,-633.4911,0.000109,2]
[333849435,1722553832272,-13727.76563167,0.000109,2]
[333849436,1722553832284,-557.07764247,0.000109,2]
[333849437,1722553832295,-9319.55914838,0.000109,2]
[333849438,1722553832306,-8363.30669565,0.000109,2]
[333849439,1722553832317,-1215.07590594,0.000109,2]
[333849440,1722553832329,-1679.06194262,0.000109,2]
[333849441,1722553832340,-300.0,0.000109,2]
[333849442,1722553832351,-300.0,0.000109,2]
[333849445,1722553837764,-712.43225591,0.00010174,2]
[333849448,1722553837885,-7044.77574439,0.00010174,2]
[333849449,1722553837897,-1605.98,0.00010174,2]
[333849450,1722553837910,-10320.83129475,0.00010174,2]
[333849451,1722553837921,-20944.25733327,0.000109,2]
[333849453,1722553837931,-500.0,0.000109,2]
[333849454,1722553837942,-1467.789,0.000109,2]
[333849455,1722553837952,-189.72278742,0.000109,2]
[333849456,1722553837962,-169.84462218,0.000109,2]
[333849457,1722553837973,-1300.0,0.000109,3]
[333849458,1722553837988,-164.34003987,0.000109,2]
[333849459,1722553837998,-500.0,0.00010911,2]
[333849460,1722553838008,-500.0,0.00010912,2]
[333849461,1722553838018,-500.0,0.00010912,2]
[333849462,1722553838029,-500.0,0.00010959,2]
[333849463,1722553838039,-200.0,0.00010959,2]
[333849464,1722553838049,-200.0,0.00010959,2]
[333849465,1722553838071,-200.0,0.00010959,2]
[333849466,1722553838081,-1500.0,0.00010959,5]
[333849467,1722553838090,-1358.97403635,0.00010989,2]
[333849468,1722553838100,-165.80379858,0.00010997,2]
[333849469,1722553838110,-886.36512999,0.00011,2]
[333849470,1722553838329,-230240.51852446,0.00011,2]
[333849481,1722553840179,-948.06124572,0.00011,2]
[333849482,1722553840190,-11122.61009273,0.00011,2]
[333849483,1722553840202,-2713.35802244,0.00011,2]
[333849484,1722553840216,-709.08266212,0.00011,2]
[333849485,1722553840228,-28747.27550056,0.00011,2]
[333849486,1722553840241,-651.16903434,0.00011,2]
[333849487,1722553842554,-322.018197,0.00011,2]
[333849488,1722553842568,-462.7030002,0.00011,2]
[333849489,1722553842580,-656.66,0.00011,2]
[333849492,1722553842673,-1608.91586877,0.00011,2]
[333849494,1722553842684,-269.23999432,0.00011,2]
[333849497,1722553842696,-1941.94,0.00011,2]
[333849499,1722553842707,-8377.97250013,0.00011,2]
[333849500,1722553842765,-28214.66801292,0.00011,2]
[333849501,1722553842777,-1217.50675063,0.00011,2]
[333849502,1722553842881,-5013.24653943,0.00011,2]
[333849504,1722553842892,-1856.11337366,0.00011,2]
[333849507,1722553842903,-33208.99999999,0.00011,2]
[333849509,1722553842915,-32621.08850002,0.00011,2]
[333849510,1722553842976,-1433.76304378,0.00011,2]
[333849511,1722553842992,-1241427.1888689,0.00011,2]
[333849512,1722553843001,-3000.0,0.00011,2]
[333849513,1722553843010,-5553.6272308,0.00011097,2]
[333849514,1722553843019,-15467.9621784,0.00011105,2]
[333849515,1722553843030,-236.10516886,0.00011105,2]
[333849516,1722553843039,-155.0,0.00011105,2]
[333849517,1722553843049,-5000.0,0.00011105,2]
[333849518,1722553843059,-7269.27662273,0.00011105,2]
[333849519,1722553843068,-6454.19252258,0.00011105,2]
[333849520,1722553843078,-10524.20000003,0.00011105,2]
[333849522,1722553843087,-4472.47771748,0.00011105,2]
[333849523,1722553843097,-2838.43536075,0.00011105,2]
[333849524,1722553843106,-214.31662615,0.00011105,2]
[333849525,1722553843115,-2727.16525437,0.00011105,2]
[333849526,1722553843125,-2383.95531201,0.00011105,2]
[333849527,1722553843134,-1256.27829447,0.00011105,2]
[333849528,1722553843144,-202.61168713,0.00011105,2]
[333849529,1722553843156,-298.34472477,0.00011105,2]
[333849530,1722553843166,-22636.62649334,0.00011186,2]
[333849531,1722553843176,-1137.94693277,0.00011324,2]
[333849532,1722553843185,-160.0,0.00011575,2]
[333849533,1722553843195,-150.75,0.000116,2]
[333849534,1722553843204,-250.0,0.00011728,2]
[333849535,1722553843214,-153.71,0.0001173,2]
[333849536,1722553843223,-420.49,0.0001189,2]
[333849537,1722553843232,-834.29,0.0001189,2]
[333849538,1722553843241,-834.29,0.0001189,2]
[333849539,1722553843250,-420.49,0.0001189,2]
[333849540,1722553843260,-834.29,0.0001189,2]
[333849541,1722553843269,-240.0,0.00011938,2]
[333849542,1722553843279,-420.49,0.00011973,2]
[333849543,1722553843289,-834.29,0.00011973,2]
[333849544,1722553843298,-834.29,0.00011973,2]
[333849545,1722553843307,-274.9,0.00011973,2]
[333849546,1722553843317,-550.0,0.00012,2]
[333849547,1722553843327,-356.08,0.00012164,2]
[333849548,1722553843336,-356.08,0.00012164,2]
[333849550,1722553843346,-1000.0,0.00012172,2]
[333849552,1722553843356,-247.76947528,0.00012391,2]
[333849554,1722553843365,-1358.97403628,0.00012535,2]
[333849556,1722553843375,-794.56166075,0.00012581,2]
[333849557,1722553843385,-914.30404021,0.00012581,2]
[333849558,1722553843394,-164.34003987,0.0001265,2]
[333849559,1722553843403,-1049.57124552,0.00012681,2]
[333849560,1722553843413,-652.98954069,0.00012681,2]
[333849561,1722553843422,-526.08215279,0.00012749,2]
[333849562,1722553843432,-519.62430261,0.00012826,2]
[333849563,1722553843441,-160.0,0.00012861,2]
[333849564,1722553843451,-279.23,0.00012922,2]
[333849565,1722553843461,-300.0,0.00012928,2]
[333849566,1722553843470,-215.68393056,0.00013,2]
[333849567,1722553843480,-649.20351135,0.00013133,2]
[333849568,1722553843490,-3000.0,0.000132,2]
[333849569,1722553843500,-528.40182091,0.00013283,2]
[333849570,1722553843510,-946.54741761,0.00013283,2]
[333849571,1722553843520,-301.19644484,0.00013283,2]
[333849572,1722553843530,-274.54331695,0.00013283,2]
[333849573,1722553843539,-484.69898026,0.00013283,2]
[333849574,1722553843549,-158.84273734,0.00013302,2]
[333849575,1722553843562,-517.87468389,0.00013333,2]
[333849576,1722553843571,-155.0,0.00013378,2]
[333849577,1722553843581,-210.80539627,0.00013378,2]
[333849578,1722553843591,-155.0,0.00013398,2]
[333849579,1722553843600,-240.0,0.0001343,2]
[333849580,1722553843610,-379.95855132,0.00013479,2]
[333849581,1722553843619,-155.0,0.00013483,2]
[333849582,1722553843628,-400.0,0.00013499,2]
[333849583,1722553843638,-400.0,0.00013499,2]
[333849584,1722553843647,-327.928426,0.0001351,2]
[333849585,1722553843656,-1000.0,0.00013524,2]
[333849586,1722553843665,-1390.82835558,0.00013648,2]
[333849587,1722553843675,-308.97616233,0.00013648,2]
[333849588,1722553843684,-349.35447946,0.0001367,2]
[333849589,1722553843694,-2751.0,0.00013699,2]
[333849590,1722553843703,-200.0,0.00013699,2]
[333849591,1722553843712,-500.0,0.00013699,2]
[333849592,1722553843722,-54563.09767789,0.000138,3]
[333849593,1722553843735,-1287.76,0.000138,3]
[333849594,1722553846014,-522.5369312,0.000138,3]
[333849595,1722553846027,-6641.0,0.000138,3]
[333849596,1722553846039,-2336.33273454,0.000138,3]
[333849602,1722553846144,-888.15322301,0.000138,3]
[333849603,1722553846156,-1578.49314389,0.000138,3]
[333849604,1722553846269,-1819.32821834,0.000138,3]
[333849605,1722553846282,-1014.8698506,0.000138,3]
[333849606,1722553846293,-61448.73480153,0.000138,3]
[333849607,1722553846303,-395.5024099,0.00013873,2]
[333849608,1722553846315,-1073.58046777,0.00013889,2]
[333849609,1722553846324,-1700.0,0.000139,5]
[333849610,1722553846334,-297940.24063052,0.000139,3]
[333849611,1722553846346,-302.0,0.000139,3]
[333849621,1722554277622,500.0,0.00027,120]
[333849622,1722554289434,500.0,0.00027,120]
[333849623,1722554301284,500.0,0.00027,120]
[333849624,1722554313769,500.0,0.00027,120]
[333849626,1722554822890,322.70131084,0.00025,60]
[333849636,1722555031955,-1800.0,0.0001,2]
[333849637,1722555038018,-678.46643896,0.0001,2]
[333849638,1722555038333,-680.9102,0.0001,2]
[333849639,1722555038346,-3272.56946897,0.0001,2]
[333849640,1722555038357,-667.15174559,0.00010174,2]
[333849641,1722555038368,-300.0,0.00010799,2]
[333849642,1722555038378,-832.33107226,0.000108,2]
[333849643,1722555038390,-832.33107227,0.000108,2]
[333849644,1722555038400,-150.0,0.00010899,2]
[333849645,1722555038410,-11496.11664071,0.000109,2]
[333849646,1722555038422,-2500.0,0.000109,2]
[333849647,1722555038434,-310.41692227,0.000109,2]
[333849649,1722555038445,-14531.15397264,0.000109,2]
[333849650,1722555038457,-1005.17011181,0.000109,2]
[333849651,1722555038468,-660.96571054,0.000109,2]
[333849652,1722555038480,-4874.99793546,0.000109,2]
[333849653,1722555038492,-298.93586434,0.000109,2]
[333849654,1722555038503,-985.91801718,0.000109,2]
[333849655,1722555038515,-3241.6375,0.000109,2]
[333849656,1722555038526,-1015.57365664,0.000109,2]
[333849657,1722555038538,-659.5914572,0.000109,2]
[333849658,1722555040016,-2010.0,0.000109,2]
[333849659,1722555040029,-56409.52221121,0.000109,2]
[333849660,1722555040039,-397.8,0.00010959,2]
[333849661,1722555040051,-1500.0,0.00011,2]
[333849662,1722555040061,-252.83,0.00011037,2]
[333849663,1722555040073,-618.03099707,0.000118,2]
[333849664,1722555040083,-1500.0,0.00011831,5]
[333849665,1722555040094,-420.0,0.00011879,2]
[333849666,1722555040104,-493.15120457,0.00012391,2]
[333849667,1722555040114,-327.928426,0.00012818,2]
[333849668,1722555040124,-252.74,0.00012996,2]
[333849669,1722555040134,-4256.06,0.00012996,2]
[333849670,1722555040144,-632.0,0.00013,2]
[333849671,1722555040153,-250.0,0.00013018,2]
[333849672,1722555040163,-5964.6358797,0.00013018,2]
[333849673,1722555040174,-17935.3641203,0.00013018,2]
[333849674,1722555040184,-999.99,0.00013029,2]
[333849675,1722555040194,-1079.38,0.00013029,2]
[333849676,1722555040204,-499.99,0.00013029,2]
[333849677,1722555040214,-336.0,0.00013052,2]
[333849678,1722555040225,-484.0,0.00013067,2]